bitfinex-derivatives/quotes_SOLF0:USTF0_20250626
["timestamp","ask_amount","ask_price","bid_price","bid_amount"]
[1750956482023,37.34,142.28,142.2,41.84072229]
[1750956482320,37.34,142.28,142.22,4.50072229]
[1750956482614,37.34,142.28,142.23,7.0277]
[1750956482819,37.34,142.28,142.22,4.50072229]
[1750956483220,7.0277,142.24,142.22,4.50072229]
[1750956483923,7.0272,142.25,142.22,4.50072229]
[1750956484411,7.0272,142.25,142.22,11.52882229]
[1750956485222,7.0267,142.26,142.23,7.0278]
[1750956485424,7.0267,142.26,142.22,4.50072229]
[1750956485722,7.0267,142.26,142.23,7.0276]
[1750956486518,37.34,142.28,142.23,7.0276]
[1750956486826,37.34,142.28,142.22,11.52892229]
[1750956487026,7.0273,142.25,142.22,4.50072229]
[1750956487924,7.0273,142.25,142.23,7.0279]
[1750956488125,7.0275,142.24,142.22,4.50072229]
[1750956488526,7.0272,142.25,142.22,11.52892229]
[1750956489226,7.0275,142.24,142.22,11.52892229]
[1750956489926,7.0273,142.25,142.22,11.52892229]
[1750956490826,7.0273,142.25,142.23,7.0279]
[1750956491028,7.0273,142.25,142.22,4.50072229]
[1750956491221,7.0268,142.26,142.22,4.50072229]
[1750956491725,7.0262,142.27,142.22,4.50072229]
[1750956491923,4.6795,142.3,142.22,4.50072229]
[1750956492119,2.3575,142.3,142.21,2.4868]
[1750956492323,37.2,142.31,142.26,4.50072229]
[1750956493228,37.2,142.31,142.25,37.2]
[1750956493427,41.70072229,142.31,142.25,37.2]
[1750956493829,7.0256,142.28,142.26,7.0265]
[1750956494029,7.0256,142.28,142.25,37.2]
[1750956494930,7.0256,142.28,142.26,7.0264]
[1750956495928,7.0253,142.29,142.27,7.026]
[1750956496629,7.0253,142.29,142.26,7.0262]
[1750956496828,7.0253,142.29,142.25,41.70072229]
[1750956497329,7.0253,142.29,142.27,7.0257]
[1750956497630,7.0247,142.3,142.25,41.70072229]
[1750956498025,9.13542229,142.33,142.27,7.0257]
[1750956499831,4.6347,142.33,142.28,7.0254]
[1750956500136,4.50072229,142.36,142.29,4.50072229]
[1750956500333,7.0238,142.32,142.29,7.0247]
[1750956500628,7.0238,142.32,142.28,4.50072229]
[1750956501534,7.0232,142.33,142.28,4.50072229]
[1750956501724,9.44752229,142.36,142.3,4.50072229]
[1750956501927,9.44752229,142.36,142.31,7.0236]
[1750956501928,4.9468,142.36,142.31,7.0236]
[1750956502125,4.9468,142.36,142.3,4.50072229]
[1750956502432,2.4441,142.36,142.33,7.0227]
[1750956502832,44.11692229,142.4,142.32,4.50072229]
[1750956503033,46.58672229,142.4,142.35,7.0218]
[1750956503631,42.086,142.4,142.34,4.50072229]
[1750956504128,7.0209,142.38,142.35,7.0218]
[1750956504336,42.086,142.4,142.34,4.50072229]
[1750956504533,46.58672229,142.4,142.34,4.50072229]
[1750956504728,7.0214,142.37,142.34,11.52282229]
[1750956506126,7.0214,142.37,142.35,7.022]
[1750956506435,7.0214,142.37,142.34,4.50072229]
[1750956506733,7.0214,142.37,142.34,11.52282229]
[1750956507330,7.0214,142.37,142.34,4.50072229]
[1750956507531,42.086,142.4,142.34,4.50072229]
[1750956507833,39.6698,142.4,142.34,4.50072229]
[1750956508333,7.0203,142.39,142.36,7.0212]
[1750956508532,7.0203,142.39,142.36,4.50072229]
[1750956508736,41.68072229,142.43,142.36,4.50072229]
[1750956509438,7.0214,142.37,142.34,7.0224]
[1750956510239,4.50072229,142.41,142.34,4.50072229]
[1750956510439,41.68072229,142.43,142.34,4.50072229]
[1750956510833,7.0204,142.39,142.36,7.0211]
[1750956511028,7.0204,142.39,142.34,4.50072229]
[1750956512241,7.0204,142.39,142.36,4.50072229]
[1750956512539,7.0198,142.4,142.36,4.50072229]
[1750956512735,37.18,142.43,142.38,4.50072229]
[1750956512939,7.0188,142.42,142.39,7.0197]
[1750956513134,7.0188,142.42,142.38,4.50072229]
[1750956513735,7.0188,142.42,142.4,7.0194]
[1750956514038,2.4574,142.44,142.4,4.50072229]
[1750956514238,2.4574,142.44,142.4,11.52002229]
[1750956514450,2.4574,142.44,142.38,4.50072229]
[1750956514835,7.0184,142.43,142.4,7.0192]
[1750956515031,2.4574,142.44,142.4,4.50072229]
[1750956515842,2.4574,142.44,142.38,4.50072229]
[1750956516045,2.4574,142.44,142.36,41.68072229]
[1750956516435,7.0194,142.41,142.38,7.0202]
[1750956517244,7.0196,142.4,142.38,7.0202]
[1750956517446,7.0196,142.4,142.36,41.68072229]
[1750956517740,7.0192,142.41,142.36,41.68072229]
[1750956517936,7.0192,142.41,142.38,7.0202]
[1750956518445,7.0196,142.4,142.38,7.0202]
[1750956520544,7.0202,142.39,142.37,7.0208]
[1750956521341,7.0198,142.4,142.38,7.0204]
[1750956524145,7.0201,142.39,142.37,7.0208]
[1750956525347,4.50072229,142.43,142.36,37.18]
[1750956525544,4.50072229,142.41,142.34,4.50072229]
[1750956525946,7.0213,142.37,142.35,7.0218]
[1750956526148,4.50072229,142.41,142.34,4.50072229]
[1750956527043,7.0203,142.39,142.34,4.50072229]
[1750956528053,7.0198,142.4,142.36,4.50072229]
[1750956528644,7.0198,142.4,142.37,7.0206]
[1750956528845,7.0201,142.39,142.37,7.0206]
[1750956529854,7.0198,142.4,142.38,7.0205]
[1750956530252,7.0198,142.4,142.36,4.50072229]
[1750956530441,7.0201,142.39,142.37,7.0208]
[1750956532955,7.0198,142.4,142.37,7.0208]
[1750956533164,36.68,142.42,142.38,7.0202]
[1750956533455,7.0194,142.41,142.38,7.0202]
[1750956533657,36.68,142.42,142.38,7.0202]
[1750956534261,7.0195,142.41,142.38,7.0202]
[1750956535154,7.0196,142.4,142.37,7.0206]
[1750956535456,7.0196,142.4,142.36,4.50072229]
[1750956536062,7.0196,142.4,142.37,7.0209]
[1750956536448,7.0196,142.4,142.36,4.50072229]
[1750956536648,7.0196,142.4,142.37,7.0206]
[1750956536853,7.0196,142.4,142.36,4.50072229]
[1750956537153,7.0196,142.4,142.38,7.0205]
[1750956539061,7.0193,142.41,142.38,7.0205]
[1750956539963,7.0193,142.41,142.39,7.0198]
[1750956540262,2.62627826,142.43,142.38,4.50072229]
[1750956540464,2.4574,142.44,142.38,4.50072229]
[1750956540669,2.62741134,142.43,142.38,4.50072229]
[1750956540864,2.4574,142.44,142.38,4.50072229]
[1750956541166,7.0187,142.42,142.39,7.0198]
[1750956541370,2.4574,142.44,142.39,7.0198]
[1750956541668,7.0193,142.41,142.39,7.02]
[1750956542366,2.4574,142.44,142.38,11.52102229]
[1750956542661,2.63017383,142.43,142.38,11.52102229]
[1750956542861,7.0195,142.41,142.38,11.52102229]
[1750956543061,6.95812229,142.44,142.38,4.50072229]
[1750956543360,7.0196,142.4,142.37,36.68]
[1750956543960,2.62932664,142.43,142.37,36.68]
[1750956543961,7.0194,142.41,142.38,7.0202]
[1750956544361,7.0194,142.41,142.37,36.68]
[1750956545371,7.0196,142.4,142.38,4.50072229]
[1750956545665,2.4574,142.44,142.37,36.68]
[1750956545861,2.63263747,142.43,142.39,7.02]
[1750956546060,7.0193,142.41,142.39,7.02]
[1750956546260,7.0193,142.41,142.38,7.0202]
[1750956546461,7.0193,142.41,142.37,36.68]
[1750956547569,7.0193,142.41,142.39,7.0198]
[1750956548069,7.0193,142.41,142.37,36.68]
[1750956548269,7.0193,142.41,142.38,7.0203]
[1750956550264,2.4574,142.44,142.37,36.68]
[1750956550464,7.13933115,142.43,142.37,36.68]
[1750956550666,2.63860886,142.42,142.37,36.68]
[1750956550866,7.0203,142.39,142.37,43.7008]
[1750956551866,7.0198,142.4,142.38,7.0205]
[1750956552265,4.50072229,142.43,142.37,36.68]
[1750956552467,7.0203,142.39,142.37,43.7008]
[1750956555273,7.0197,142.4,142.38,7.0205]
[1750956555474,4.62959113,142.42,142.37,36.68]
[1750956555776,9.65796645,142.41,142.37,36.68]
[1750956556079,2.63846645,142.4,142.37,36.68]
[1750956556263,7.0195,142.41,142.39,7.02]
[1750956556464,2.63858833,142.4,142.39,7.02]
[1750956557677,9.65818833,142.4,142.38,7.0203]
[1750956557878,4.50072229,142.43,142.37,36.68]
[1750956558078,4.50072229,142.41,142.35,8.69268139]
[1750956558278,4.50072229,142.39,142.34,44.97268139]
[1750956558577,2.63891912,142.38,142.34,44.97268139]
[1750956558769,7.0213,142.37,142.34,44.97268139]
[1750956559465,7.0208,142.38,142.34,44.97268139]
[1750956559677,7.0208,142.38,142.34,49.47340368]
[1750956560479,7.0208,142.38,142.35,7.0217]
[1750956560678,7.0208,142.38,142.34,49.47340368]
[1750956561169,7.0208,142.38,142.35,7.0219]
[1750956562378,7.0208,142.38,142.36,7.0215]
[1750956562879,7.021,142.37,142.35,7.0218]
[1750956563479,4.7709,142.4,142.34,44.97268139]
[1750956563676,2.64055466,142.39,142.34,44.97268139]
[1750956563983,2.64055466,142.38,142.34,44.97268139]
[1750956564184,4.7709,142.4,142.34,44.97268139]
[1750956564373,2.63641332,142.39,142.34,44.97268139]
[1750956564573,2.63641332,142.38,142.34,36.28]
[1750956564773,7.0216,142.36,142.34,43.3022]
[1750956567775,7.022,142.35,142.34,36.28]
[1750956567980,6.76802229,142.39,142.33,8.69268139]
[1750956568167,2.63529186,142.38,142.32,8.69268139]
[1750956568371,38.91529186,142.37,142.32,8.69268139]
[1750956568572,2.63529186,142.36,142.31,44.97268139]
[1750956568769,2.63529186,142.35,142.31,44.97268139]
[1750956568982,40.78072229,142.37,142.31,44.97268139]
[1750956569183,2.63053714,142.36,142.31,44.97268139]
[1750956569389,40.78072229,142.37,142.31,44.97268139]
[1750956569580,2.62973946,142.36,142.31,44.97268139]
[1750956569879,40.78072229,142.37,142.31,44.97268139]
[1750956570184,7.0228,142.34,142.32,7.0235]
[1750956571595,7.023,142.33,142.31,43.3039]
[1750956571882,7.023,142.33,142.31,7.0239]
[1750956572084,7.023,142.33,142.3,13.19340368]
[1750956572284,7.023,142.33,142.31,7.0241]
[1750956572785,40.78072229,142.37,142.3,13.19340368]
[1750956572987,2.62448473,142.36,142.3,13.19340368]
[1750956573184,40.78072229,142.37,142.3,13.19340368]
[1750956573381,7.0229,142.34,142.32,7.0235]
[1750956573785,40.78072229,142.37,142.3,13.19340368]
[1750956573988,7.0226,142.35,142.3,13.19340368]
[1750956574176,36.28,142.37,142.32,4.50072229]
[1750956574374,2.62345112,142.36,142.32,4.50072229]
[1750956574588,36.28,142.37,142.32,4.50072229]
[1750956574589,36.28,142.37,142.32,11.52422229]
[1750956575088,36.28,142.37,142.31,7.024]
[1750956575282,2.62424366,142.36,142.3,4.50072229]
[1750956575474,40.78072229,142.37,142.3,4.50072229]
[1750956575678,40.78072229,142.37,142.31,7.024]
[1750956575679,7.0233,142.33,142.31,7.024]
[1750956576781,7.023,142.34,142.3,4.50072229]
[1750956577180,36.28,142.37,142.3,4.50072229]
[1750956577375,7.0228,142.34,142.32,7.0235]
[1750956577781,7.0233,142.33,142.31,7.024]
[1750956578091,7.0233,142.33,142.3,4.50072229]
[1750956579392,7.0233,142.33,142.31,7.0241]
[1750956583785,4.50072229,142.35,142.29,8.69268139]
[1750956583990,4.50072229,142.33,142.28,8.69268139]
[1750956584187,9.35872229,142.34,142.27,8.69268139]
[1750956584386,7.024,142.32,142.26,15.63910368]
[1750956584995,7.0243,142.31,142.27,4.50072229]
[1750956585594,7.0243,142.31,142.28,7.0255]
[1750956586186,7.0246,142.3,142.27,11.52652229]
[1750956586378,7.0246,142.3,142.27,7.0258]
[1750956586587,7.0246,142.3,142.25,135.73070344]
[1750956587183,7.0246,142.3,142.27,7.0258]
[1750956588892,7.0246,142.3,142.25,127.03802205]
[1750956589690,2.34,142.33,142.28,7.0252]
[1750956589891,7.0243,142.31,142.25,127.03802205]
[1750956590290,7.0243,142.31,142.28,7.025]
[1750956591795,7.0243,142.31,142.29,7.0249]
[1750956591994,7.0238,142.32,142.27,4.50072229]
[1750956592592,7.0232,142.33,142.27,4.50072229]
[1750956592790,4.858,142.34,142.29,4.50072229]
[1750956592998,2.4701,142.34,142.29,4.50072229]
[1750956593207,7.0236,142.32,142.27,4.50072229]
[1750956593900,7.0236,142.32,142.3,7.0243]
[1750956594900,7.0236,142.32,142.29,7.0249]
[1750956595796,7.0236,142.32,142.3,7.0247]
[1750956596204,2.4701,142.34,142.29,4.50072229]
[1750956596506,36.06,142.36,142.29,4.50072229]
[1750956597402,7.0228,142.34,142.32,7.0237]
[1750956597993,7.0225,142.35,142.33,7.0232]
[1750956598189,36.06,142.36,142.31,4.50072229]
[1750956598698,36.06,142.36,142.34,7.0225]
[1750956599002,7.0215,142.37,142.34,7.0225]
[1750956600100,7.0219,142.36,142.34,7.0225]
[1750956600402,4.8049,142.38,142.33,7.0229]
[1750956600590,4.50072229,142.36,142.29,40.56072229]
[1750956600795,36.06,142.35,142.29,40.56072229]
[1750956600995,7.0237,142.33,142.3,7.0245]
[1750956601406,36.06,142.35,142.3,7.0245]
[1750956601608,36.06,142.35,142.31,7.0242]
[1750956602202,7.0233,142.33,142.31,7.0242]
[1750956603504,7.0231,142.34,142.31,7.0242]
[1750956604409,2.4277,142.37,142.33,7.0233]
[1750956604596,2.4277,142.37,142.33,4.50072229]
[1750956604902,7.0216,142.37,142.35,7.0222]
[1750956605106,40.8649,142.38,142.33,4.50072229]
[1750956605291,2.61719105,142.37,142.33,4.50072229]
[1750956605497,2.61705633,142.36,142.31,4.50072229]
[1750956605703,40.8649,142.38,142.31,4.50072229]
[1750956605905,2.61705187,142.37,142.31,4.50072229]
[1750956606107,2.61705187,142.36,142.31,4.50072229]
[1750956606309,7.0231,142.34,142.32,7.0234]
[1750956606598,7.0231,142.34,142.29,40.56072229]
[1750956608507,7.0226,142.35,142.29,40.56072229]
[1750956608805,7.0226,142.35,142.31,4.50072229]
[1750956609107,7.0226,142.35,142.32,7.0237]
[1750956609406,7.0226,142.35,142.31,4.50072229]
[1750956609703,7.0226,142.35,142.32,7.0233]
[1750956609904,7.0226,142.35,142.31,4.50072229]
[1750956610402,7.0226,142.35,142.33,7.023]
[1750956610710,7.022,142.36,142.31,4.50072229]
[1750956611003,40.8649,142.38,142.34,7.0224]
[1750956611209,9.64235808,142.37,142.33,4.50072229]
[1750956611405,2.62075808,142.36,142.33,4.50072229]
[1750956611604,7.0216,142.37,142.33,4.50072229]
[1750956611800,2.62120269,142.36,142.34,7.0225]
[1750956612108,7.0216,142.37,142.33,4.50072229]
[1750956612302,7.021,142.38,142.33,40.44072229]
[1750956612508,2.62181195,142.37,142.33,40.44072229]
[1750956612709,7.021,142.38,142.36,7.0217]
[1750956612901,2.62181195,142.37,142.36,7.0217]
[1750956613200,2.62181195,142.37,142.33,40.44072229]
[1750956613401,7.021,142.38,142.35,7.022]
[1750956613601,2.6218026,142.37,142.35,7.022]
[1750956613804,7.0214,142.37,142.35,7.022]
[1750956614206,7.022,142.36,142.33,40.44072229]
[1750956615503,7.022,142.36,142.34,7.0227]
[1750956615705,7.0215,142.37,142.33,40.44072229]
[1750956616106,4.57275537,142.39,142.35,7.0219]
[1750956616406,9.64260612,142.38,142.35,7.0219]
[1750956616608,2.62150612,142.37,142.35,7.0219]
[1750956616909,7.0214,142.37,142.35,7.0219]
[1750956618008,38.2886,142.41,142.35,4.50072229]
[1750956618213,2.62186233,142.4,142.37,4.50072229]
[1750956618401,35.92,142.44,142.39,4.50072229]
[1750956618606,2.62165009,142.43,142.39,4.50072229]
[1750956618901,2.62165009,142.42,142.38,7.0206]
[1750956619109,2.62165009,142.41,142.39,7.0203]
[1750956619317,40.79508873,142.44,142.37,4.50072229]
[1750956619611,2.62049104,142.43,142.38,7.0206]
[1750956619807,2.62049104,142.42,142.37,4.50072229]
[1750956620008,2.62049104,142.41,142.37,4.50072229]
[1750956620207,40.49145516,142.44,142.38,7.0208]
[1750956620403,2.62404939,142.43,142.38,7.0208]
[1750956620609,2.62404939,142.42,142.38,7.0208]
[1750956620902,9.64374939,142.41,142.38,7.0208]
[1750956621106,7.0197,142.41,142.38,7.0208]
[1750956621406,7.0197,142.41,142.39,7.0203]
[1750956621602,40.49145516,142.44,142.37,4.50072229]
[1750956621806,2.62358901,142.43,142.37,40.42072229]
[1750956622110,2.62358901,142.42,142.38,7.0206]
[1750956622412,7.0196,142.41,142.38,7.0203]
[1750956622805,7.0196,142.41,142.37,40.42072229]
[1750956623111,7.0196,142.41,142.39,7.0202]
[1750956623812,7.0191,142.42,142.39,7.0202]
[1750956624016,7.0191,142.42,142.39,11.52092229]
[1750956624321,35.92,142.44,142.39,4.50072229]
[1750956624619,7.0185,142.43,142.39,4.50072229]
[1750956624801,7.0185,142.43,142.4,7.0195]
[1750956625202,7.0181,142.44,142.41,4.50072229]
[1750956626110,7.0176,142.45,142.42,7.0186]
[1750956626318,7.0176,142.45,142.41,4.50072229]
[1750956627117,7.0179,142.44,142.41,4.50072229]
[1750956627317,7.0179,142.44,142.42,7.0186]
[1750956628217,7.0179,142.44,142.41,11.51982229]
[1750956628718,7.0179,142.44,142.41,11.52012229]
[1750956629121,4.50072229,142.46,142.39,4.50072229]
[1750956629327,2.62258481,142.45,142.39,4.50072229]
[1750956629519,4.50072229,142.46,142.39,4.50072229]
[1750956629816,2.62258481,142.45,142.39,4.50072229]
[1750956630016,4.50072229,142.46,142.39,4.50072229]
[1750956630219,7.0194,142.42,142.4,7.0201]
[1750956630730,7.0194,142.42,142.39,11.52092229]
[1750956631419,4.50072229,142.46,142.38,7.0208]
[1750956631614,2.62913696,142.45,142.37,40.42072229]
[1750956631818,7.0194,142.42,142.4,7.0201]
[1750956632317,7.0194,142.42,142.39,11.52102229]
[1750956632512,7.0197,142.41,142.39,11.52102229]
[1750956633619,7.0195,142.42,142.39,11.52102229]
[1750956633820,2.64338324,142.45,142.39,11.52102229]
[1750956634022,4.50072229,142.46,142.39,11.52102229]
[1750956634215,7.0194,142.42,142.4,7.0201]
[1750956635419,7.0194,142.42,142.39,11.52112229]
[1750956635818,7.0198,142.41,142.39,11.52112229]
[1750956636219,2.64544247,142.45,142.39,4.50072229]
[1750956636423,7.14631095,142.44,142.37,40.42072229]
[1750956636620,38.56558866,142.43,142.37,40.42072229]
[1750956636818,35.92,142.43,142.37,47.44192229]
[1750956637015,35.92,142.43,142.37,40.42072229]
[1750956637214,2.64570402,142.42,142.37,35.92]
[1750956637423,7.0215,142.38,142.36,7.0218]
[1750956637621,9.40132229,142.42,142.35,4.50072229]
[1750956637826,11.75372229,142.42,142.35,4.50072229]
[1750956638120,2.64567051,142.41,142.35,11.52292229]
[1750956638325,7.0214,142.38,142.35,11.52292229]
[1750956639220,7.0217,142.37,142.35,11.52292229]
[1750956640427,7.0222,142.36,142.34,42.9429]
[1750956640721,11.75372229,142.42,142.34,35.92]
[1750956640927,2.64835959,142.41,142.34,35.92]
[1750956641224,7.0224,142.36,142.34,42.943]
[1750956642629,2.64552354,142.41,142.34,42.943]
[1750956642824,2.64552354,142.4,142.34,42.943]
[1750956643024,2.64552354,142.39,142.34,42.943]
[1750956643324,21.2544126,142.42,142.34,42.943]
[1750956643524,2.64653433,142.41,142.34,42.943]
[1750956643728,7.0221,142.37,142.34,42.943]
[1750956644434,7.0222,142.36,142.34,42.943]
[1750956644931,7.0217,142.37,142.34,42.943]
[1750956645435,2.64473568,142.4,142.35,4.50072229]
[1750956645621,9.66573568,142.39,142.35,4.50072229]
[1750956645821,7.021,142.39,142.35,4.50072229]
[1750956646024,7.021,142.39,142.36,7.0221]
[1750956646425,7.0213,142.38,142.36,7.0221]
[1750956647830,7.253,142.42,142.37,7.0217]
[1750956648029,2.63754866,142.41,142.37,4.50072229]
[1750956648232,35.92,142.43,142.37,4.50072229]
[1750956648635,35.92,142.43,142.39,4.50072229]
[1750956648931,667.62,142.46,142.39,4.50072229]
[1750956649123,2.6384764,142.45,142.39,4.50072229]
[1750956649327,2.6384764,142.44,142.39,4.50072229]
[1750956649527,2.6384764,142.43,142.39,4.50072229]
[1750956649731,667.62,142.46,142.39,4.50072229]
[1750956649933,7.0195,142.42,142.39,11.52102229]
[1750956651526,7.0195,142.42,142.4,7.0202]
[1750956652729,4.50072229,142.45,142.38,35.9]
[1750956652929,2.63978645,142.44,142.38,35.9]
[1750956653126,7.02,142.41,142.39,7.0206]
[1750956653528,7.02,142.41,142.38,35.9]
[1750956654034,7.0203,142.4,142.38,42.9209]
[1750956656736,7.0199,142.41,142.39,7.0207]
[1750956657736,7.0194,142.42,142.4,7.0202]
[1750956658037,7.0194,142.42,142.39,4.50072229]
[1750956658426,7.0194,142.42,142.39,11.52112229]
[1750956658840,7.0194,142.42,142.4,7.0202]
[1750956659536,7.0194,142.42,142.39,11.52112229]
[1750956660026,7.0197,142.41,142.39,11.52112229]
[1750956660541,7.0197,142.41,142.39,7.0204]
[1750956661043,7.0207,142.39,142.38,35.9]
[1750956661232,4.50072229,142.43,142.35,40.38072229]
[1750956661441,7.50090518,142.42,142.35,40.38072229]
[1750956661744,2.65300518,142.41,142.37,4.50072229]
[1750956662037,2.4997,142.42,142.37,4.50072229]
[1750956662238,2.65424498,142.41,142.38,7.0209]
[1750956662542,2.4997,142.42,142.38,7.0209]
[1750956662735,7.0202,142.4,142.38,7.0209]
[1750956663039,9.4881905,142.44,142.39,7.0204]
[1750956663340,7.0195,142.42,142.39,7.0204]
[1750956663540,2.6027003,142.41,142.39,7.0204]
[1750956663735,7.0195,142.42,142.39,7.0204]
[1750956663937,2.6032891,142.41,142.39,7.0204]
[1750956664132,7.0195,142.42,142.39,7.0204]
[1750956664336,2.60405748,142.41,142.39,7.0204]
[1750956664530,7.0195,142.42,142.39,7.0204]
[1750956664735,2.60189336,142.41,142.4,7.0202]
[1750956665437,7.0195,142.42,142.4,7.0202]
[1750956667238,7.0184,142.44,142.41,4.50072229]
[1750956667446,2.60339113,142.43,142.41,4.50072229]
[1750956667742,7.0184,142.44,142.41,4.50072229]
[1750956667933,7.0184,142.44,142.42,7.0189]
[1750956668732,35.9,142.46,142.41,4.50072229]
[1750956668939,2.60298138,142.45,142.41,4.50072229]
[1750956669137,9.49095715,142.48,142.41,4.50072229]
[1750956669138,40.646,142.49,142.41,4.50072229]
[1750956669341,7.0181,142.45,142.42,7.0189]
[1750956669843,7.0181,142.45,142.43,7.0186]
[1750956671246,7.0181,142.45,142.43,11.51932229]
[1750956672347,45.57206501,142.49,142.39,35.9]
[1750956672348,4.50072229,142.46,142.39,44.62666661]
[1750956672543,38.48540982,142.45,142.39,35.9]
[1750956672854,7.0201,142.41,142.39,35.9]
[1750956673048,7.10650631,142.44,142.38,11.52162229]
[1750956673049,9.18672229,142.44,142.38,11.52162229]
[1750956673246,7.0201,142.41,142.38,11.52162229]
[1750956674347,7.0202,142.4,142.38,11.52162229]
[1750956676052,4.686,142.44,142.38,4.50072229]
[1750956676351,49.84346519,142.56,142.38,4.50072229]
[1750956676352,35.86,142.48,142.42,4.50072229]
[1750956676656,7.0181,142.45,142.42,11.51962229]
[1750956676846,7.0181,142.45,142.42,4.50072229]
[1750956677246,7.0175,142.46,142.42,4.50072229]
[1750956677442,40.43658281,142.48,142.42,4.50072229]
[1750956677745,2.60632197,142.47,142.42,4.50072229]
[1750956677947,7.018,142.45,142.42,4.50072229]
[1750956679259,7.018,142.45,142.43,7.0185]
[1750956679955,7.0175,142.46,142.43,7.0185]
[1750956680154,35.86,142.48,142.43,7.0185]
[1750956680356,2.60529281,142.47,142.43,7.0185]
[1750956680558,2.60529281,142.46,142.43,7.0185]
[1750956680752,35.86,142.48,142.43,7.0185]
[1750956681057,2.60529281,142.47,142.42,11.51972229]
[1750956681256,2.60529281,142.46,142.42,4.50072229]
[1750956681448,35.86,142.48,142.42,4.50072229]
[1750956681650,2.60494418,142.47,142.42,4.50072229]
[1750956681852,2.60494418,142.46,142.42,4.50072229]
[1750956682056,35.86,142.48,142.43,7.0184]
[1750956682256,2.60467948,142.47,142.43,7.0184]
[1750956682456,2.60467948,142.46,142.43,7.0184]
[1750956682658,7.0175,142.46,142.43,7.0184]
[1750956683459,7.0169,142.47,142.42,4.50072229]
[1750956684062,7.0172,142.46,142.42,4.50072229]
[1750956684561,35.86,142.48,142.42,4.50072229]
[1750956685061,7.0168,142.47,142.45,7.0175]
[1750956686865,7.0172,142.46,142.44,11.51872229]
[1750956688460,7.0172,142.46,142.44,7.018]
[1750956688860,7.017,142.47,142.45,7.0176]
[1750956689053,7.07583821,142.5,142.46,4.50072229]
[1750956689054,4.58783821,142.5,142.46,4.50072229]
[1750956689266,2.61539391,142.49,142.44,40.34072229]
[1750956689467,35.84,142.51,142.45,7.0176]
[1750956689657,2.61596101,142.5,142.45,7.0176]
[1750956689966,7.0166,142.48,142.45,7.0176]
[1750956690153,40.79991404,142.51,142.45,7.0176]
[1750956690354,2.61423232,142.5,142.46,7.0172]
[1750956690556,7.0166,142.48,142.44,40.34072229]
[1750956691473,7.0167,142.47,142.45,7.0175]
[1750956691877,45.33319779,142.51,142.44,35.84]
[1750956692178,19.35563395,142.5,142.44,35.84]
[1750956692376,2.61463187,142.49,142.44,35.84]
[1750956692564,2.61463187,142.48,142.44,35.84]
[1750956692763,12.0956755,142.5,142.44,35.84]
[1750956692963,2.61569987,142.49,142.44,35.84]
[1750956693167,2.61569987,142.48,142.44,35.84]
[1750956693380,2.61569987,142.47,142.44,35.84]
[1750956693579,7.1032,142.5,142.44,35.84]
[1750956693876,7.0175,142.46,142.44,35.84]
[1750956694881,7.0175,142.46,142.44,42.8582]
[1750956696574,7.0175,142.46,142.44,35.84]
[1750956696776,7.0177,142.45,142.42,4.50072229]
[1750956697275,7.0177,142.45,142.43,7.0187]
[1750956701983,7.0175,142.46,142.44,7.0182]
[1750956702372,7.0175,142.46,142.44,11.51892229]
[1750956703985,7.1032,142.5,142.44,11.51892229]
[1750956704285,2.61311575,142.49,142.44,4.50072229]
[1750956704488,2.61311575,142.48,142.46,4.50072229]
[1750956704687,2.4583,142.5,142.46,4.50072229]
[1750956704888,9.62936353,142.49,142.47,7.0165]
[1750956705088,2.61346353,142.48,142.47,7.0165]
[1750956706887,2.61346353,142.48,142.45,35.8]
[1750956707189,2.4583,142.5,142.44,4.50072229]
[1750956707387,2.61477884,142.49,142.44,4.50072229]
[1750956707588,7.0171,142.47,142.45,7.0176]
[1750956708088,7.0165,142.48,142.45,7.0176]
[1750956708283,2.4583,142.5,142.46,11.51772229]
[1750956708485,2.61520565,142.49,142.46,11.51772229]
[1750956708686,2.61520565,142.48,142.46,11.51772229]